bitfinex-derivatives/quotes_BTCF0:USTF0_20241116
["timestamp","ask_amount","ask_price","bid_price","bid_amount"]
[1731800174583,0.1319186,90682.0,90679.0,0.11027303]
[1731800174784,0.1319186,90683.0,90679.0,0.11027303]
[1731800175191,0.1319186,90682.0,90680.0,0.01033802]
[1731800175494,0.1319186,90683.0,90681.0,0.01033802]
[1731800175793,0.0551,90684.0,90682.0,0.01033802]
[1731800175990,0.13194639,90683.0,90681.0,0.11027668]
[1731800176183,0.13194639,90683.0,90682.0,0.01033794]
[1731800176887,0.0551,90684.0,90682.0,0.1206134]
[1731800177090,0.0551,90684.0,90683.0,0.01033794]
[1731800177491,0.0551,90684.0,90681.0,0.055102]
[1731800177683,0.13196692,90682.0,90681.0,0.055102]
[1731800177883,0.13196692,90682.0,90681.0,0.06543994]
[1731800178289,0.13196692,90683.0,90681.0,0.17571358]
[1731800178495,0.13196692,90683.0,90682.0,0.01033794]
[1731800178796,0.0551,90684.0,90682.0,0.01033794]
[1731800179091,0.0551,90684.0,90683.0,0.01033794]
[1731800179484,0.16526468,90685.0,90678.0,0.02205339]
[1731800179680,0.13199262,90680.0,90679.0,0.01033793]
[1731800180007,0.13199262,90680.0,90679.0,0.12061157]
[1731800180301,0.055101,90683.0,90679.0,0.11027364]
[1731800182096,0.055102,90681.0,90679.0,0.11027364]
[1731800182591,0.22036668,90681.0,90679.0,0.11027364]
[1731800182794,0.16526468,90680.0,90679.0,0.11027364]
[1731800183398,0.055102,90681.0,90679.0,0.11027364]
[1731800183989,0.05360049,90680.0,90679.0,0.11027364]
[1731800184187,0.05360049,90680.0,90664.0,0.26504587]
[1731800184188,0.055107,90672.0,90666.0,0.055111]
[1731800184383,0.46951062,90672.0,90666.0,0.055111]
[1731800184596,0.66764448,90672.0,90666.0,0.055111]
[1731800184803,0.46951062,90672.0,90671.0,0.11034045]
[1731800186297,0.415907,90672.0,90671.0,0.11034045]
[1731800186500,0.46951382,90672.0,90671.0,0.11034045]
[1731800187216,0.055112,90665.0,90664.0,0.00165409]
[1731800187504,0.10871882,90665.0,90664.0,0.00165409]
[1731800187997,0.05360682,90665.0,90664.0,0.11028823]
[1731800188198,0.05360682,90665.0,90652.0,0.055119]
[1731800188389,0.18710896,90654.0,90652.0,0.055119]
[1731800188591,0.0333,90653.0,90652.0,0.055119]
[1731800188807,0.0333,90653.0,90649.0,0.08712]
[1731800188808,0.16528996,90653.0,90649.0,0.08712]
[1731800188990,0.13198996,90652.0,90649.0,0.08712]
[1731800189192,0.055121,90650.0,90646.0,0.055123]
[1731800189491,0.49278996,90652.0,90637.0,0.10615012]
[1731800189796,0.49278996,90652.0,90637.0,0.08712]
[1731800189797,0.13198996,90651.0,90637.0,0.08712]
[1731800189998,0.3608,90652.0,90637.0,0.08712]
[1731800189999,0.055127,90641.0,90637.0,0.08712]
[1731800190193,0.055127,90641.0,90639.0,0.11031378]
[1731800192299,0.3608,90652.0,90639.0,0.11031378]
[1731800192300,0.13198996,90651.0,90645.0,0.055124]
[1731800192492,0.3608,90652.0,90646.0,0.10615012]
[1731800192897,0.055122,90649.0,90647.0,0.11032656]
[1731800193201,0.3608,90652.0,90638.0,0.3608]
[1731800193497,0.3608,90652.0,90640.0,0.16544382]
[1731800193498,0.055125,90643.0,90640.0,0.16544382]
[1731800194004,0.055125,90643.0,90641.0,0.16544282]
[1731800194400,0.055121,90650.0,90642.0,0.055125]
[1731800194717,0.055121,90650.0,90642.0,0.16544913]
[1731800195198,0.3608,90652.0,90642.0,0.055125]
[1731800195199,0.055122,90649.0,90642.0,0.055125]
[1731800195396,0.055122,90649.0,90643.0,0.11032413]
[1731800196186,0.3608,90652.0,90649.0,0.055121]
[1731800196591,0.3608,90652.0,90650.0,0.11031926]
[1731800197196,0.3608,90652.0,90650.0,0.16543926]
[1731800197699,0.3608,90652.0,90650.0,0.05512]
[1731800197901,0.3608,90652.0,90651.0,0.11031317]
[1731800198314,0.0051,90661.0,90660.0,0.055115]
[1731800198599,0.001,90670.0,90660.0,0.055115]
[1731800198600,0.0051,90670.0,90668.0,0.055109]
[1731800198804,0.0051,90670.0,90660.0,0.55399012]
[1731800198805,0.00165497,90671.0,90669.0,0.055109]
[1731800199600,0.00165497,90671.0,90670.0,0.11031257]
[1731800202409,0.05676297,90671.0,90670.0,0.11031257]
[1731800202707,0.055109,90670.0,90667.0,0.10615012]
[1731800202909,0.055109,90670.0,90668.0,0.11028945]
[1731800203310,0.055109,90670.0,90663.0,0.055113]
[1731800203513,0.055109,90670.0,90664.0,0.11028945]
[1731800203706,0.00165497,90671.0,90665.0,0.055112]
[1731800203912,0.055109,90669.0,90665.0,0.055112]
[1731800204115,0.055109,90669.0,90666.0,0.11029127]
[1731800205101,0.05511,90668.0,90666.0,0.11029127]
[1731800206711,0.055116,90658.0,90656.0,0.055117]
[1731800207022,0.18682842,90665.0,90653.0,0.10615012]
[1731800207218,0.18682842,90665.0,90660.0,0.055114]
[1731800207410,0.055112,90665.0,90660.0,0.055114]
[1731800207813,0.18682842,90665.0,90660.0,0.055114]
[1731800208012,0.055112,90665.0,90661.0,0.11030344]
[1731800208411,0.055113,90663.0,90661.0,0.11030344]
[1731800208915,0.21972942,90663.0,90661.0,0.11030344]
[1731800209116,0.055114,90661.0,90657.0,0.02205973]
[1731800209315,0.18683142,90660.0,90658.0,0.11029857]
[1731800209517,0.13171642,90659.0,90658.0,0.11029857]
[1731800209716,0.055115,90660.0,90658.0,0.11029857]
[1731800209717,0.18683142,90660.0,90658.0,0.11029857]
[1731800210111,0.18683142,90660.0,90658.0,0.16541457]
[1731800210309,0.0656,90662.0,90660.0,0.055115]
[1731800211009,0.0656,90662.0,90661.0,0.11030344]
[1731800211810,0.19739365,90662.0,90661.0,0.11030344]
[1731800212323,0.0656,90662.0,90657.0,0.02205973]
[1731800212517,0.0656,90662.0,90658.0,0.1103004]
[1731800213016,0.19739365,90662.0,90658.0,0.1103004]
[1731800213214,0.0656,90662.0,90658.0,0.1103004]
[1731800213415,0.19739365,90662.0,90658.0,0.1654164]
[1731800213918,0.0656,90662.0,90658.0,0.1654164]
[1731800214224,0.19739365,90662.0,90658.0,0.1654164]
[1731800215420,0.18690865,90660.0,90658.0,0.1103004]
[1731800215628,0.13179365,90660.0,90658.0,0.1103004]
[1731800215815,0.13179365,90660.0,90657.0,0.055116]
[1731800216123,0.13179365,90660.0,90658.0,0.11030222]
[1731800216327,0.0656,90662.0,90658.0,0.11030222]
[1731800217026,0.13191614,90659.0,90658.0,0.11030222]
[1731800217321,0.0656,90662.0,90658.0,0.47110222]
[1731800217322,0.13191593,90662.0,90658.0,0.47110222]
[1731800217629,0.13191593,90664.0,90662.0,0.055114]
[1731800217826,0.13191593,90664.0,90661.0,0.08426412]
[1731800218015,0.13191593,90664.0,90662.0,0.055114]
[1731800218325,0.13191593,90665.0,90664.0,0.055112]
[1731800219025,0.13191593,90665.0,90664.0,0.16541057]
[1731800220430,0.13193984,90665.0,90664.0,0.11029857]
[1731800220613,0.16498745,90670.0,90664.0,0.16541057]
[1731800220816,0.16498745,90670.0,90664.0,0.055112]
[1731800221115,0.13194023,90665.0,90664.0,0.055112]
[1731800221626,0.16498745,90669.0,90664.0,0.11029675]
[1731800221921,0.16498745,90667.0,90658.0,0.36136]
[1731800222129,0.16184056,90671.0,90658.0,0.3608]
[1731800222130,0.13196254,90659.0,90658.0,0.3608]
[1731800222322,0.055115,90660.0,90658.0,0.3608]
[1731800222521,0.055115,90660.0,90658.0,0.11029675]
[1731800222826,0.055115,90660.0,90655.0,0.08704]
[1731800222827,0.16497068,90659.0,90655.0,0.08704]
[1731800223030,0.055117,90657.0,90655.0,0.08704]
[1731800223323,0.0316,90656.0,90655.0,0.08704]
[1731800223717,0.0316,90656.0,90655.0,0.19734709]
[1731800224754,0.16497068,90660.0,90659.0,0.055115]
[1731800224925,0.16497068,90662.0,90659.0,0.055115]
[1731800225126,0.16497068,90664.0,90655.0,0.19319012]
[1731800225320,0.13203451,90660.0,90655.0,0.19319012]
[1731800225519,0.13203451,90659.0,90655.0,0.19319012]
[1731800225723,0.13203451,90659.0,90658.0,0.055116]
[1731800226320,0.22008368,90663.0,90658.0,0.16541883]
[1731800226627,0.16497068,90661.0,90658.0,0.16541883]
[1731800226817,0.1398249,90660.0,90658.0,0.11030283]
[1731800227016,0.0536099,90659.0,90658.0,0.11030283]
[1731800227220,0.055117,90657.0,90653.0,0.055119]
[1731800227427,0.16512341,90654.0,90653.0,0.055119]
[1731800227731,0.16512341,90655.0,90653.0,0.055119]
[1731800227923,0.16512341,90655.0,90653.0,0.16542731]
[1731800228330,0.16512341,90656.0,90653.0,0.16542731]
[1731800229025,0.16512341,90657.0,90655.0,0.10615012]
[1731800229336,0.0311,90660.0,90655.0,0.16126812]
[1731800229337,0.16512341,90658.0,90655.0,0.16126812]
[1731800229719,0.16512341,90658.0,90656.0,0.11030709]
[1731800229923,0.0311,90660.0,90656.0,0.11030709]
[1731800229924,0.16512341,90659.0,90656.0,0.11030709]
[1731800230439,0.16512341,90658.0,90656.0,0.11030709]
[1731800231931,0.16512341,90657.0,90656.0,0.11030709]
[1731800232331,0.16517189,90657.0,90656.0,0.11030709]
[1731800232530,0.055116,90658.0,90656.0,0.11030709]
[1731800232833,0.05361151,90657.0,90656.0,0.03330709]
[1731800233942,0.05361173,90657.0,90656.0,0.03330709]
[1731800235651,0.05361197,90657.0,90656.0,0.03330709]
[1731800236630,0.055116,90658.0,90656.0,0.08842409]
[1731800236959,0.1652081,90657.0,90656.0,0.08842409]
[1731800237244,0.08696,90675.0,90656.0,0.03330709]
[1731800237245,0.16521221,90659.0,90656.0,0.03330709]
[1731800237438,0.16521221,90659.0,90658.0,0.055116]
[1731800237637,0.16521221,90662.0,90658.0,0.19792092]
[1731800237833,0.16521221,90662.0,90661.0,0.055114]
[1731800238243,0.16521221,90663.0,90662.0,0.055114]
[1731800238637,0.25309394,90669.0,90663.0,0.055113]
[1731800238837,0.05360678,90668.0,90663.0,0.055113]
[1731800239042,0.25159172,90668.0,90664.0,0.11029918]
[1731800239247,0.05590675,90669.0,90664.0,0.11029918]
[1731800239248,0.055112,90665.0,90664.0,0.11029918]
[1731800239451,0.05360678,90665.0,90657.0,0.25303692]
[1731800239644,0.16525819,90660.0,90658.0,0.11029675]
[1731800239844,0.16525819,90660.0,90659.0,0.055115]
[1731800240242,0.16525819,90660.0,90659.0,0.16541175]
[1731800241647,0.055113,90663.0,90659.0,0.16541175]
[1731800241853,0.16525894,90660.0,90659.0,0.16541175]
[1731800242335,0.05360908,90662.0,90659.0,0.16541175]
[1731800242752,0.16526047,90660.0,90659.0,0.16541175]
[1731800243145,0.05360908,90662.0,90659.0,0.16541175]
[1731800243146,0.055113,90663.0,90659.0,0.16541175]
[1731800243452,0.05360894,90662.0,90659.0,0.16541175]
[1731800244051,0.16526031,90660.0,90659.0,0.16541175]
[1731800244935,0.16526031,90660.0,90659.0,0.11029675]
[1731800245140,0.19798494,90660.0,90659.0,0.11029675]
[1731800245352,0.05360894,90660.0,90651.0,0.3608]
[1731800245647,0.05360894,90660.0,90649.0,0.19957543]
[1731800245648,0.16526944,90652.0,90649.0,0.00165451]
[1731800246048,0.0319,90652.0,90650.0,0.11030283]
[1731800246251,0.3608,90651.0,90650.0,0.11030283]
[1731800246551,0.47971651,90651.0,90650.0,0.11030283]
[1731800247936,0.47971651,90651.0,90650.0,0.03330283]
[1731800249553,0.47971935,90651.0,90650.0,0.03330283]
[1731800253847,0.47971935,90651.0,90639.0,0.055127]
[1731800254047,0.3608,90643.0,90639.0,0.055127]
[1731800254246,0.10874791,90642.0,90641.0,0.11031378]
[1731800254453,0.16507768,90642.0,90639.0,0.055127]
[1731800254645,0.055127,90640.0,90639.0,0.055127]
[1731800255448,0.055127,90640.0,90639.0,0.16545174]
[1731800256858,0.055127,90640.0,90639.0,0.11032474]
[1731800257157,0.22020468,90640.0,90634.0,0.05513]
[1731800257345,0.1320419,90635.0,90634.0,0.05513]
[1731800257546,0.1320419,90636.0,90634.0,0.05513]
[1731800257953,0.1320419,90635.0,90634.0,0.16546326]
[1731800258469,0.1320419,90636.0,90634.0,0.16546326]
[1731800258642,0.1320419,90635.0,90634.0,0.16546326]
[1731800258848,0.1320419,90636.0,90634.0,0.11033326]
[1731800259255,0.1320419,90635.0,90634.0,0.16546326]
[1731800259558,0.1320419,90637.0,90634.0,0.16546326]
[1731800260460,0.1320419,90637.0,90635.0,0.055129]
[1731800260647,0.1320419,90638.0,90635.0,0.055129]
[1731800260848,0.1320419,90637.0,90635.0,0.055129]
[1731800261048,0.1320419,90638.0,90636.0,0.11033204]
[1731800261260,0.1320419,90637.0,90636.0,0.11033204]
[1731800261465,0.3618,90641.0,90636.0,0.47113204]
[1731800261466,0.001,90641.0,90636.0,0.47113204]
[1731800261763,0.00104001,90652.0,90648.0,0.055122]
[1731800262059,0.055116,90658.0,90652.0,0.055119]
[1731800262272,0.055116,90658.0,90653.0,0.055119]
[1731800262654,0.055116,90658.0,90653.0,0.16544982]
[1731800262857,0.055116,90658.0,90648.0,0.46759012]
[1731800262858,0.13192411,90657.0,90648.0,0.46759012]
[1731800263051,0.18704011,90658.0,90648.0,0.46695012]
[1731800263250,0.13192411,90657.0,90649.0,0.1103077]
[1731800263450,0.13192411,90657.0,90653.0,0.055119]
[1731800263648,0.055116,90658.0,90649.0,0.1103077]
[1731800263649,0.13192411,90656.0,90649.0,0.1103077]
[1731800263857,0.13192411,90655.0,90648.0,0.3608]
[1731800264053,0.13192411,90656.0,90649.0,0.11031074]
[1731800264264,0.13192411,90655.0,90649.0,0.11031074]
[1731800264456,0.13192411,90654.0,90649.0,0.11031074]
[1731800266456,0.055121,90650.0,90649.0,0.11031074]
[1731800266653,0.055122,90649.0,90641.0,0.055126]
[1731800266860,0.13195015,90646.0,90642.0,0.11031257]
[1731800267357,0.13195015,90645.0,90642.0,0.11031257]
[1731800267554,0.13195015,90647.0,90642.0,0.11031257]
[1731800268249,0.18707215,90648.0,90642.0,0.11031257]
[1731800268447,0.055122,90648.0,90642.0,0.11031257]
[1731800268645,0.055122,90648.0,90643.0,0.055125]
[1731800269358,0.055122,90648.0,90644.0,0.11032048]
[1731800269776,0.13195015,90647.0,90644.0,0.11032048]
[1731800270064,0.24274119,90648.0,90644.0,0.11032048]
[1731800270264,0.13195015,90648.0,90644.0,0.11032048]
[1731800270473,0.13195015,90647.0,90646.0,0.055123]
[1731800270762,0.13195015,90650.0,90642.0,0.3937]
[1731800270952,0.13195015,90650.0,90649.0,0.055121]
[1731800271657,0.13195015,90650.0,90649.0,0.16544026]
[1731800272463,0.13203126,90650.0,90649.0,0.16544026]
[1731800272764,0.22042801,90655.0,90649.0,0.16544026]
[1731800272958,0.16490514,90654.0,90649.0,0.16544026]
[1731800274057,0.16490514,90652.0,90649.0,0.16544026]
[1731800274352,0.16490514,90651.0,90649.0,0.16544026]
[1731800274563,0.11064087,90655.0,90649.0,0.16544026]
[1731800274564,0.16490514,90652.0,90649.0,0.16544026]
[1731800275058,0.11064087,90655.0,90649.0,0.11031926]
[1731800275059,0.16490514,90650.0,90649.0,0.11031926]
[1731800275260,0.16510851,90650.0,90649.0,0.11031926]
[1731800275466,0.05361747,90650.0,90638.0,0.19770059]
[1731800275668,0.055124,90645.0,90639.0,0.08684]
[1731800275965,0.16512309,90643.0,90637.0,0.055128]
[1731800276173,0.16512309,90643.0,90640.0,0.110315]
[1731800276374,0.16512309,90642.0,90637.0,0.055128]
[1731800276566,0.16512309,90642.0,90631.0,0.0608]
[1731800276567,0.16512309,90643.0,90638.0,0.110315]
[1731800276875,0.16512309,90639.0,90633.0,0.46970339]
[1731800277075,0.13211517,90635.0,90634.0,0.11032717]
[1731800277372,0.13211517,90635.0,90634.0,0.21647729]
[1731800277668,0.13211517,90636.0,90634.0,0.27160729]
[1731800277871,0.13211517,90636.0,90634.0,0.19460729]
[1731800278370,0.19788617,90647.0,90634.0,0.19460729]
[1731800278371,0.13211517,90637.0,90636.0,0.055129]
[1731800278571,0.16512309,90641.0,90639.0,0.055128]
[1731800278768,0.16512309,90643.0,90639.0,0.055128]
[1731800278975,0.16512309,90643.0,90640.0,0.11033082]
[1731800279567,0.16512309,90644.0,90640.0,0.11033082]
[1731800279766,0.16512309,90643.0,90640.0,0.11033082]
[1731800280570,0.16512309,90644.0,90640.0,0.11033082]
[1731800280961,0.16512309,90643.0,90640.0,0.11033082]
[1731800282066,0.16512309,90643.0,90641.0,0.055126]
[1731800282271,0.16512309,90644.0,90641.0,0.415926]
[1731800282479,0.16512309,90644.0,90640.0,0.11033082]
[1731800282480,0.16512309,90644.0,90642.0,0.055126]
[1731800282668,0.16512309,90644.0,90642.0,0.16545074]
[1731800282864,0.16512309,90645.0,90642.0,0.16545074]
[1731800283170,0.16512309,90647.0,90643.0,0.11032352]
[1731800283369,0.16512309,90650.0,90647.0,0.055122]
[1731800283770,0.16512309,90650.0,90642.0,0.46755012]
[1731800283771,0.16512309,90652.0,90649.0,0.055121]
[1731800284074,0.055118,90654.0,90650.0,0.055121]
[1731800284075,0.16512309,90653.0,90650.0,0.055121]
[1731800284567,0.16512309,90653.0,90651.0,0.11031622]
[1731800284763,0.16512309,90653.0,90651.0,0.16543622]
[1731800285067,0.16512309,90653.0,90651.0,0.05512]
[1731800285465,0.16512309,90653.0,90652.0,0.11031257]
[1731800285768,0.21842373,90654.0,90652.0,0.11031257]
[1731800286375,0.16512309,90654.0,90652.0,0.11031257]
[1731800286576,0.16512309,90653.0,90652.0,0.11031257]
[1731800286981,0.16512309,90654.0,90652.0,0.16543157]
[1731800287284,0.16512309,90655.0,90650.0,0.3608]
[1731800287468,0.16512309,90654.0,90653.0,0.055119]
[1731800288069,0.08690605,90658.0,90653.0,0.16543035]
[1731800288379,0.05361396,90657.0,90653.0,0.16543035]
[1731800288680,0.05361396,90656.0,90653.0,0.16543035]
[1731800288873,0.05361396,90655.0,90653.0,0.16543035]
[1731800289179,0.28479222,90658.0,90653.0,0.16543035]
[1731800289390,0.05361394,90657.0,90653.0,0.16543035]
[1731800289681,0.16514276,90654.0,90653.0,0.16543035]
[1731800290179,0.16514276,90656.0,90653.0,0.11031135]
[1731800290365,0.16514276,90656.0,90655.0,0.055118]
[1731800290564,0.16514276,90656.0,90650.0,0.3608]
[1731800290565,0.16514276,90660.0,90650.0,0.55850059]
[1731800290872,0.0313,90669.0,90650.0,0.55850059]
[1731800290873,0.16514276,90661.0,90659.0,0.16126512]
[1731800291271,0.16514276,90661.0,90660.0,0.1103077]
[1731800291473,0.16515623,90661.0,90660.0,0.1654227]
[1731800292481,0.16515623,90662.0,90660.0,0.1654227]
[1731800292679,0.16515623,90661.0,90660.0,0.1654227]
[1731800292877,0.16515623,90661.0,90660.0,0.0884227]
[1731800293274,0.16515623,90662.0,90660.0,0.0884227]
[1731800293477,0.16515623,90664.0,90662.0,0.055114]
[1731800293688,0.16515623,90665.0,90664.0,0.055112]
[1731800293889,0.08701171,90669.0,90664.0,0.055112]
[1731800293890,0.16515623,90666.0,90664.0,0.055112]
[1731800294090,0.16515623,90666.0,90664.0,0.16541057]
[1731800294479,0.16515623,90667.0,90664.0,0.11029857]
[1731800294684,0.16515623,90667.0,90666.0,0.055111]
[1731800295092,0.16515623,90667.0,90666.0,0.16540653]
[1731800295587,0.25216794,90669.0,90668.0,0.05511]
[1731800296186,0.25216794,90669.0,90668.0,0.16540432]
[1731800296580,0.08701171,90669.0,90668.0,0.16540432]
[1731800299186,0.00165497,90671.0,90670.0,0.055109]
[1731800299806,0.00165497,90671.0,90670.0,0.16540088]
[1731800300696,0.0051,90683.0,90670.0,0.44117188]
[1731800300985,0.13195939,90684.0,90682.0,0.055107]
[1731800301194,0.13195939,90684.0,90683.0,0.055106]
[1731800301582,0.16295939,90686.0,90684.0,0.055105]
[1731800301782,0.086105,90686.0,90683.0,0.11028945]
[1731800301983,0.05511,90678.0,90669.0,0.055114]
[1731800302282,0.05511,90678.0,90668.0,0.08672]
[1731800302283,0.13181963,90677.0,90668.0,0.08672]
[1731800302482,0.05511,90678.0,90672.0,0.055113]
[1731800302483,0.13181963,90676.0,90672.0,0.055113]
[1731800302690,0.16477454,90682.0,90668.0,0.08672]
[1731800302691,0.13181963,90677.0,90673.0,0.055112]
[1731800303186,0.3608,90675.0,90674.0,0.11028519]
[1731800303496,0.3608,90675.0,90669.0,0.055114]
[1731800303497,0.49261963,90675.0,90669.0,0.055114]
[1731800303693,0.3608,90675.0,90669.0,0.055114]
[1731800304092,0.49261963,90675.0,90669.0,0.055114]
[1731800304397,0.3608,90675.0,90670.0,0.16540163]
[1731800304692,0.18693163,90673.0,90665.0,0.055117]
[1731800304897,0.13181963,90670.0,90665.0,0.055117]
[1731800305095,0.13181963,90669.0,90667.0,0.055116]
[1731800305289,0.0307,90668.0,90667.0,0.055116]
[1731800305796,0.16251963,90668.0,90667.0,0.11028702]
[1731800306092,0.16251963,90668.0,90650.0,0.3608]
[1731800306093,0.085815,90668.0,90662.0,0.055119]
[1731800306392,0.13180286,90664.0,90663.0,0.055118]
[1731800306585,0.13180286,90665.0,90663.0,0.055118]
[1731800306990,0.13180286,90665.0,90664.0,0.055118]
[1731800307309,0.13180286,90665.0,90656.0,0.08672]
[1731800307310,0.3608,90666.0,90658.0,0.055121]
[1731800307484,0.13183974,90662.0,90658.0,0.055121]
[1731800307684,0.13183974,90662.0,90654.0,0.10615012]
[1731800307685,0.16477454,90664.0,90654.0,0.055124]
[1731800307894,0.3608,90666.0,90650.0,0.338924]
[1731800307895,0.13185492,90657.0,90650.0,0.338924]
[1731800308084,0.065,90656.0,90650.0,0.338924]
[1731800308387,0.19685492,90656.0,90650.0,0.338924]
[1731800308700,0.13185492,90655.0,90651.0,0.11030222]
[1731800309301,0.13185492,90655.0,90654.0,0.055124]
[1731800309593,0.065,90656.0,90654.0,0.055124]
[1731800309992,0.065,90656.0,90654.0,0.16543292]
[1731800310896,0.22977454,90656.0,90654.0,0.16543292]
[1731800311802,0.16477454,90655.0,90654.0,0.16543292]
[1731800312094,0.22977454,90656.0,90654.0,0.16543292]
[1731800312486,0.16477454,90655.0,90654.0,0.16543292]
[1731800313793,0.28551122,90656.0,90654.0,0.16543292]
[1731800314589,0.12073668,90656.0,90654.0,0.16543292]
[1731800317006,0.065,90656.0,90654.0,0.16543292]
[1731800320502,0.27092466,90655.0,90654.0,0.11030892]
[1731800320701,0.15976935,90655.0,90654.0,0.11030892]
[1731800321004,0.055127,90650.0,90646.0,0.055129]
[1731800321207,0.3927,90649.0,90646.0,0.055129]
[1731800321401,0.3927,90649.0,90645.0,0.02205879]
[1731800321712,0.3927,90649.0,90648.0,0.1119636]
[1731800322799,0.3927,90649.0,90648.0,0.0349636]
[1731800322987,0.44632269,90649.0,90648.0,0.0349636]
[1731800323410,0.3927,90649.0,90648.0,0.0349636]
[1731800324600,0.55754349,90649.0,90648.0,0.0349636]
[1731800325689,0.3927,90649.0,90648.0,0.0349636]
[1731800325894,0.55754349,90649.0,90648.0,0.0349636]
[1731800326194,0.3927,90649.0,90648.0,0.0349636]
[1731800329306,0.55754349,90649.0,90648.0,0.0349636]
[1731800329611,0.3927,90649.0,90648.0,0.0349636]
[1731800329903,0.44632437,90649.0,90648.0,0.0349636]
[1731800330120,0.3927,90649.0,90648.0,0.0349636]
[1731800330403,0.44632479,90649.0,90648.0,0.0349636]
[1731800331801,0.44632407,90649.0,90648.0,0.0349636]
[1731800332407,0.08552407,90649.0,90648.0,0.0349636]
[1731800332905,0.44632407,90649.0,90648.0,0.0349636]
[1731800334395,0.44632326,90649.0,90648.0,0.0349636]
[1731800335406,0.44632326,90649.0,90648.0,0.0900916]
[1731800335610,0.64420943,90649.0,90648.0,0.0900916]
[1731800336301,0.44632326,90649.0,90648.0,0.0349636]
[1731800336506,0.44632285,90649.0,90648.0,0.0349636]
[1731800337212,0.44632285,90649.0,90648.0,0.00320534]
[1731800337807,0.44632285,90649.0,90645.0,0.055129]
[1731800337808,0.44632285,90649.0,90638.0,0.00339573]
[1731800338112,0.16518173,90641.0,90638.0,0.00339573]
[1731800338312,0.16518173,90641.0,90639.0,0.055133]
[1731800338498,0.16518173,90641.0,90639.0,0.16544922]
[1731800338698,0.16518173,90640.0,90639.0,0.16544922]
[1731800339900,0.16518173,90641.0,90639.0,0.16544922]
[1731800340109,0.16518173,90640.0,90639.0,0.16544922]
[1731800341002,0.055128,90647.0,90639.0,0.16544922]
[1731800341003,0.16518173,90641.0,90639.0,0.16544922]
[1731800341403,0.16518173,90640.0,90639.0,0.16544922]
[1731800342005,0.16518173,90641.0,90639.0,0.16544922]
[1731800342200,0.16518173,90642.0,90640.0,0.0697091]
[1731800342402,0.16518173,90644.0,90643.0,0.055131]
[1731800342607,0.16518173,90644.0,90643.0,0.1248401]
[1731800342830,0.16518173,90645.0,90643.0,0.16545817]
[1731800343116,0.16518173,90644.0,90643.0,0.16545817]
[1731800343903,0.16518173,90645.0,90643.0,0.16545817]
[1731800344109,0.16518173,90647.0,90645.0,0.055129]
[1731800344315,0.16518173,90647.0,90646.0,0.13780563]
[1731800344523,0.55901808,90653.0,90646.0,0.13780563]
[1731800344524,0.16518173,90650.0,90646.0,0.13780563]
[1731800344710,0.1321828,90647.0,90646.0,0.24812793]
[1731800344912,0.52598173,90653.0,90648.0,0.055128]
[1731800344913,0.1321828,90650.0,90648.0,0.055128]
[1731800345113,0.1321828,90649.0,90648.0,0.055128]
[1731800345425,0.1321828,90650.0,90648.0,0.055128]
[1731800345721,0.1321828,90650.0,90648.0,0.16544482]
[1731800345920,0.1321828,90653.0,90652.0,0.055125]
[1731800346107,0.16518173,90658.0,90656.0,0.055123]
[1731800346508,0.16518173,90658.0,90657.0,0.11031561]
[1731800346709,0.16518173,90658.0,90657.0,0.16543761]
[1731800347012,0.16518173,90658.0,90657.0,0.055122]
[1731800347211,0.16518173,90659.0,90657.0,0.16542726]
[1731800348109,0.16518173,90661.0,90659.0,0.055121]
[1731800348518,0.05361058,90666.0,90659.0,0.055121]
[1731800348519,0.16518173,90660.0,90659.0,0.055121]
[1731800348723,0.16518173,90661.0,90660.0,0.11030466]
[1731800349119,0.19821808,90666.0,90661.0,0.055119]
[1731800349422,0.05361171,90665.0,90661.0,0.055119]
[1731800349625,0.16507606,90662.0,90661.0,0.055119]
[1731800349826,0.61386344,90668.0,90665.0,0.055117]
[1731800350010,0.05361051,90667.0,90666.0,0.055116]
[1731800350416,0.05361051,90667.0,90666.0,0.1654164]
[1731800351611,0.05361051,90667.0,90666.0,0.1103004]
[1731800352118,0.05361051,90667.0,90662.0,0.055119]
[1731800352334,0.16498804,90664.0,90663.0,0.11029432]
[1731800352819,0.16498804,90664.0,90663.0,0.03329432]
[1731800353215,0.16498804,90665.0,90663.0,0.03329432]
[1731800354224,0.16498804,90666.0,90663.0,0.03329432]
[1731800354626,0.16498804,90665.0,90663.0,0.03329432]
[1731800354923,0.16498804,90666.0,90663.0,0.08841232]
[1731800355826,0.16498804,90667.0,90663.0,0.08841232]
[1731800356128,0.16498804,90666.0,90663.0,0.08841232]
[1731800357626,0.16498804,90665.0,90663.0,0.08841232]
[1731800357812,0.16498804,90665.0,90663.0,0.03329432]
[1731800357813,0.055118,90664.0,90663.0,0.03329432]
[1731800358010,0.055118,90664.0,90646.0,0.02205985]
[1731800358011,0.15981845,90664.0,90646.0,0.02205985]
[1731800358220,0.13194222,90650.0,90646.0,0.02205985]
[1731800358417,0.13194222,90650.0,90647.0,0.11029736]
[1731800358621,0.13194222,90651.0,90647.0,0.11029736]
[1731800358824,0.13194222,90651.0,90649.0,0.055127]
[1731800359022,0.3608,90653.0,90649.0,0.055127]
[1731800359023,0.13194222,90650.0,90649.0,0.055127]
[1731800359512,0.13194222,90650.0,90649.0,0.16544261]
[1731800360227,0.3608,90653.0,90649.0,0.16544261]
[1731800360612,0.3608,90653.0,90649.0,0.11031561]
[1731800360829,0.055126,90651.0,90649.0,0.11031561]
[1731800361124,0.3608,90653.0,90642.0,0.055131]
[1731800361125,0.055127,90650.0,90642.0,0.055131]
[1731800361329,0.13197716,90646.0,90644.0,0.11031317]
[1731800361530,0.13197716,90646.0,90642.0,0.055131]
[1731800361828,0.13197716,90645.0,90644.0,0.02205973]
[1731800362026,0.3608,90645.0,90643.0,0.11031317]
[1731800362331,0.055132,90641.0,90636.0,0.055135]
[1731800362529,0.13199429,90639.0,90637.0,0.11032169]
[1731800362715,0.0303,90640.0,90637.0,0.11032169]
[1731800364627,0.055133,90639.0,90637.0,0.11032169]
[1731800364826,0.055133,90639.0,90633.0,0.055137]
[1731800365016,0.13199454,90635.0,90633.0,0.16546539]
[1731800365327,0.13199454,90635.0,90633.0,0.055137]
[1731800365720,0.13199454,90635.0,90634.0,0.110329]
[1731800366117,0.13199454,90636.0,90634.0,0.110329]
[1731800366833,0.13199454,90636.0,90631.0,0.3608]
[1731800367341,0.13199454,90636.0,90633.0,0.055136]
[1731800367929,0.13199454,90636.0,90634.0,0.11033265]
[1731800368342,0.13199454,90636.0,90631.0,0.338936]
[1731800368522,0.13199454,90636.0,90635.0,0.11033326]
[1731800368828,0.19522778,90640.0,90629.0,0.12996242]